fUST/lending_fUST_20240901
["ID","MTS","AMOUNT","RATE_DAILY","PERIOD"]
[336773388,1725133841811,-500.0,0.00032876,31]
[336773389,1725133841820,-930.18,0.00032876,31]
[336773391,1725133841830,-500.0,0.00032876,31]
[336773394,1725133841840,-467.27089702,0.00032876,31]
[336773396,1725133841849,-151.0,0.00032876,7]
[336773397,1725133841859,-500.0,0.00032876,31]
[336773399,1725133841868,-500.0,0.00032876,31]
[336773401,1725133841879,-500.0,0.00032876,31]
[336773403,1725133841888,-640.19,0.00032876,31]
[336773405,1725133841898,-151.0,0.00032876,7]
[336773407,1725133841908,-151.0,0.00032876,7]
[336773409,1725133841918,-500.0,0.00032876,31]
[336773411,1725133841927,-500.0,0.00032876,31]
[336773413,1725133841939,-502.974992,0.00032876,7]
[336773415,1725133841948,-502.974992,0.00032876,7]
[336773417,1725133841958,-502.974992,0.00032876,7]
[336773419,1725133841967,-500.0,0.00032876,31]
[336773421,1725133841979,-869.93,0.00032876,31]
[336773423,1725133841988,-500.0,0.00032876,31]
[336773425,1725133841998,-3225.42,0.00032876,31]
[336773426,1725133842008,-502.974992,0.00032876,7]
[336773428,1725133842018,-151.0,0.00032876,7]
[336773430,1725133842030,-502.974992,0.00032876,7]
[336773431,1725133842041,-151.0,0.00032876,7]
[336773433,1725133842051,-502.974992,0.00032876,7]
[336773435,1725133842061,-151.0,0.00032876,7]
[336773437,1725133842072,-759.48,0.00032876,31]
[336773439,1725133842082,-500.0,0.00032876,31]
[336773440,1725133842101,-675.34,0.00032876,31]
[336773442,1725133842111,-500.0,0.00032876,31]
[336773443,1725133842122,-500.0,0.00032876,31]
[336773444,1725133842134,-932.22,0.00032876,31]
[336773445,1725133842145,-978.56,0.00032876,31]
[336773446,1725133842155,-500.0,0.00032876,31]
[336773447,1725133842164,-500.0,0.00032876,31]
[336773448,1725133842174,-500.0,0.00032876,31]
[336773449,1725133842184,-1000.0,0.00032876,7]
[336773450,1725133842194,-500.0,0.00032876,31]
[336773451,1725133842203,-660.39,0.00032876,31]
[336773452,1725133842212,-500.0,0.00032876,31]
[336773453,1725133842222,-500.0,0.00032876,31]
[336773454,1725133842232,-430.54722159,0.00032876,31]
[336773455,1725133842241,-500.0,0.00032876,31]
[336773456,1725133842251,-1778.75,0.00032876,31]
[336773457,1725133842262,-1029.17,0.00032876,31]
[336773458,1725133842272,-4924.97,0.00032876,31]
[336773459,1725133842282,-500.0,0.00032876,31]
[336773460,1725133842291,-500.0,0.00032876,31]
[336773461,1725133842301,-500.0,0.00032876,31]
[336773462,1725133842310,-500.0,0.00032876,31]
[336773463,1725133842320,-4407.38,0.00032876,31]
[336773464,1725133842329,-500.0,0.00032876,31]
[336773465,1725133842342,-1025.95,0.00032876,31]
[336773466,1725133842351,-500.0,0.00032876,31]
[336773467,1725133842361,-626.42829007,0.00032876,31]
[336773468,1725133842370,-909.54,0.00032876,31]
[336773469,1725133842379,-500.0,0.00032876,7]
[336773470,1725133842389,-500.0,0.00032876,31]
[336773471,1725133842398,-1441.21,0.00032876,31]
[336773472,1725133842408,-1052.99,0.00032876,31]
[336773473,1725133842417,-500.0,0.00032876,31]
[336773474,1725133842426,-151.0,0.00032876,7]
[336773475,1725133842437,-868.51,0.00032876,31]
[336773476,1725133842446,-500.0,0.00032876,31]
[336773477,1725133842456,-1386.65,0.00032876,31]
[336773478,1725133842465,-1678.81,0.00032876,31]
[336773479,1725133842474,-765.5,0.00032876,31]
[336773480,1725133842484,-500.0,0.00032876,31]
[336773481,1725133842493,-502.04550254,0.00032876,31]
[336773482,1725133842503,-1034.1,0.00032876,31]
[336773483,1725133842513,-500.0,0.00032876,31]
[336773484,1725133842522,-564.81,0.00032876,31]
[336773485,1725133842532,-151.0,0.00032876,7]
[336773486,1725133842541,-151.0,0.00032876,7]
[336773487,1725133842551,-151.0,0.00032876,7]
[336773488,1725133842561,-799.54,0.00032876,31]
[336773489,1725133842571,-500.0,0.00032876,31]
[336773490,1725133842581,-151.0,0.00032876,7]
[336773491,1725133842591,-151.0,0.00032876,7]
[336773492,1725133842600,-277.824326,0.00032876,7]
[336773493,1725133842609,-500.0,0.00032876,31]
[336773494,1725133842619,-500.0,0.00032876,31]
[336773495,1725133842629,-500.0,0.00032876,31]
[336773496,1725133842638,-206.64923251,0.00032876,31]
[336773497,1725133842647,-956.98,0.00032876,31]
[336773498,1725133842657,-500.0,0.00032876,31]
[336773499,1725133842666,-735.35,0.00032876,31]
[336773500,1725133842676,-1610.61,0.00032876,31]
[336773501,1725133842685,-500.0,0.00032876,31]
[336773502,1725133842694,-501.56254941,0.00032876,31]
[336773503,1725133842705,-500.0,0.00032876,31]
[336773504,1725133842716,-500.0,0.00032876,31]
[336773505,1725133842725,-2697.17,0.00032876,31]
[336773506,1725133842736,-173.751696,0.00032876,31]
[336773507,1725133842747,-500.0,0.00032876,31]
[336773508,1725133842758,-500.0,0.00032876,31]
[336773509,1725133842768,-500.0,0.00032876,31]
[336773510,1725133842778,-500.0,0.00032876,31]
[336773511,1725133842787,-230.02264608,0.00032876,31]
[336773512,1725133842796,-644.73,0.00032876,31]
[336773513,1725133842805,-2782.38,0.00032876,31]
[336773514,1725133842815,-2782.38,0.00032876,31]
[336773515,1725133842824,-2782.38,0.00032876,31]
[336773516,1725133842833,-2782.38,0.00032876,31]
[336773517,1725133842843,-2782.38,0.00032876,31]
[336773518,1725133842853,-2782.38,0.00032876,31]
[336773519,1725133842862,-2782.38,0.00032876,31]
[336773520,1725133842875,-2782.38,0.00032876,31]
[336773521,1725133842888,-2782.38,0.00032876,31]
[336773522,1725133842897,-2782.38,0.00032876,31]
[336773523,1725133842907,-2782.38,0.00032876,31]
[336773524,1725133842917,-500.0,0.00032876,31]
[336773525,1725133842928,-2782.38,0.00032876,31]
[336773526,1725133842942,-2782.38,0.00032876,31]
[336773527,1725133842951,-2782.38,0.00032876,31]
[336773528,1725133842960,-2782.38,0.00032876,31]
[336773529,1725133842970,-2782.38,0.00032876,31]
[336773530,1725133842980,-4459.31,0.00032876,31]
[336773531,1725133842989,-500.0,0.00032876,31]
[336773532,1725133842998,-1914.31,0.00032876,31]
[336773533,1725133843008,-500.0,0.00032876,31]
[336773534,1725133843020,-355.84334161,0.00032876,31]
[336773535,1725133843032,-500.0,0.00032876,31]
[336773536,1725133843042,-151.0,0.00032876,7]
[336773537,1725133843052,-243.72255375,0.00032876,31]
[336773538,1725133843061,-151.0,0.00032876,7]
[336773539,1725133843071,-151.0,0.00032876,7]
[336773540,1725133843081,-500.0,0.00032876,31]
[336773541,1725133843090,-500.0,0.00032876,31]
[336773542,1725133843099,-965.28,0.00032876,31]
[336773543,1725133843108,-859.56,0.00032876,31]
[336773544,1725133843117,-549.65,0.00032876,31]
[336773545,1725133843126,-500.0,0.00032876,31]
[336773546,1725133843135,-151.0,0.00032876,7]
[336773547,1725133843144,-151.0,0.00032876,7]
[336773548,1725133843153,-500.0,0.00032876,31]
[336773549,1725133843163,-151.0,0.00032876,7]
[336773550,1725133843172,-2057.18,0.00032876,31]
[336773551,1725133843182,-500.0,0.00032876,31]
[336773552,1725133843192,-500.0,0.00032876,31]
[336773553,1725133843201,-500.0,0.00032876,31]
[336773554,1725133843211,-500.0,0.00032876,31]
[336773555,1725133843220,-151.0,0.00032876,7]
[336773556,1725133843230,-500.0,0.00032876,31]
[336773557,1725133843239,-151.0,0.00032876,7]
[336773558,1725133843249,-151.0,0.00032876,7]
[336773559,1725133843258,-500.0,0.00032876,31]
[336773560,1725133843267,-4460.61,0.00032876,31]
[336773561,1725133843278,-500.0,0.00032876,31]
[336773562,1725133843288,-1415.04,0.00032876,31]
[336773563,1725133843297,-29801.73,0.00032876,8]
[336773564,1725133843307,-500.0,0.00032876,31]
[336773566,1725133843317,-500.0,0.00032876,31]
[336773568,1725133843327,-500.0,0.00032876,31]
[336773569,1725133843336,-665.67,0.00032876,31]
[336773571,1725133843345,-500.0,0.00032876,31]
[336773573,1725133843356,-1361.81,0.00032876,31]
[336773574,1725133843366,-500.0,0.00032876,31]
[336773575,1725133843375,-996.22,0.00032876,31]
[336773576,1725133843384,-500.0,0.00032876,31]
[336773577,1725133843393,-500.0,0.00032876,31]
[336773578,1725133843403,-500.0,0.00032876,31]
[336773579,1725133843412,-500.0,0.00032876,31]
[336773580,1725133843421,-500.0,0.00032876,31]
[336773581,1725133843432,-1635.59,0.00032876,21]
[336773582,1725133843443,-500.0,0.00032876,31]
[336773583,1725133843454,-707.88,0.00032876,31]
[336773584,1725133843463,-500.0,0.00032876,31]
[336773585,1725133843473,-1230.44,0.00032876,31]
[336773586,1725133843483,-4854.62,0.00032876,31]
[336773587,1725133843492,-509.6084453,0.00032876,31]
[336773588,1725133843502,-550.07,0.00032876,31]
[336773589,1725133843511,-500.0,0.00032876,31]
[336773590,1725133843520,-151.0,0.00032876,7]
[336773591,1725133843529,-151.0,0.00032876,7]
[336773592,1725133843538,-500.0,0.00032876,31]
[336773593,1725133843547,-151.0,0.00032876,7]
[336773594,1725133843556,-1062.62,0.00032876,31]
[336773595,1725133843565,-151.0,0.00032876,7]
[336773596,1725133843575,-151.0,0.00032876,7]
[336773597,1725133843585,-527.64269415,0.00032876,31]
[336773598,1725133843594,-151.0,0.00032876,7]
[336773599,1725133843603,-500.0,0.00032876,31]
[336773600,1725133843612,-864.13,0.00032876,31]
[336773601,1725133843621,-364.16002508,0.00032876,31]
[336773602,1725133843630,-502.54978621,0.00032876,31]
[336773603,1725133843639,-500.0,0.00032876,31]
[336773604,1725133843648,-1627.52,0.00032876,31]
[336773605,1725133843657,-500.0,0.00032876,31]
[336773606,1725133843667,-500.0,0.00032876,31]
[336773607,1725133843676,-500.0,0.00032876,31]
[336773608,1725133843686,-500.0,0.00032876,31]
[336773609,1725133843695,-500.0,0.00032876,31]
[336773610,1725133843703,-500.0,0.00032876,31]
[336773611,1725133843713,-3699.89,0.00032876,31]
[336773612,1725133843722,-500.0,0.00032876,31]
[336773613,1725133843731,-746.11,0.00032876,31]
[336773614,1725133843739,-500.0,0.00032876,31]
[336773615,1725133843748,-733.35,0.00032876,31]
[336773617,1725133843757,-516.74050358,0.00032876,31]
[336773619,1725133843767,-500.0,0.00032876,31]
[336773620,1725133843777,-500.0,0.00032876,31]
[336773621,1725133843875,-500.0,0.00032876,31]
[336773622,1725133843884,-500.0,0.00032876,31]
[336773623,1725133843894,-846.68,0.00032876,31]
[336773624,1725133843903,-862.9,0.00032876,31]
[336773625,1725133843912,-500.0,0.00032876,31]
[336773626,1725133843921,-500.0,0.00032876,31]
[336773627,1725133843931,-500.0,0.00032876,31]
[336773628,1725133843943,-500.0,0.00032876,31]
[336773629,1725133843952,-667.09,0.00032876,31]
[336773630,1725133843961,-500.0,0.00032876,31]
[336773631,1725133843970,-151.0,0.00032876,7]
[336773632,1725133843982,-180.31447,0.00032876,7]
[336773633,1725133843992,-518.56,0.00032876,31]
[336773634,1725133844002,-500.0,0.00032876,31]
[336773635,1725133844012,-5875.44,0.00032876,31]
[336773636,1725133844022,-500.0,0.00032876,31]
[336773637,1725133844031,-834.79,0.00032876,31]
[336773638,1725133844040,-500.0,0.00032876,31]
[336773639,1725133844049,-500.0,0.00032876,31]
[336773640,1725133844059,-573.95,0.00032876,31]
[336773641,1725133844068,-500.0,0.00032876,31]
[336773642,1725133844077,-500.0,0.00032876,31]
[336773643,1725133844086,-1128.49,0.00032876,7]
[336773644,1725133844095,-837.0,0.00032876,31]
[336773645,1725133844104,-500.0,0.00032876,31]
[336773646,1725133844113,-2340.4,0.00032876,31]
[336773647,1725133844123,-500.0,0.00032876,31]
[336773648,1725133844132,-500.0,0.00032876,31]
[336773649,1725133844141,-500.0,0.00032876,2]
[336773650,1725133844150,-500.0,0.00032876,31]
[336773651,1725133844160,-6081.13,0.00032876,31]
[336773652,1725133844169,-992.97,0.00032876,31]
[336773653,1725133844178,-743.32,0.00032876,14]
[336773654,1725133844187,-1030.49,0.00032876,31]
[336773655,1725133844196,-316.457236,0.00032876,7]
[336773656,1725133844205,-316.457236,0.00032876,7]
[336773657,1725133844215,-316.457236,0.00032876,7]
[336773658,1725133844224,-500.0,0.00032876,31]
[336773659,1725133844233,-549.61,0.00032876,31]
[336773660,1725133844242,-500.0,0.00032876,31]
[336773661,1725133844252,-316.457236,0.00032876,7]
[336773662,1725133844261,-316.457236,0.00032876,7]
[336773663,1725133844270,-316.457236,0.00032876,7]
[336773664,1725133844280,-642.75,0.00032876,31]
[336773665,1725133844289,-3026.49,0.00032876,31]
[336773666,1725133844298,-500.0,0.00032876,31]
[336773667,1725133844307,-12657.89,0.00032876,31]
[336773668,1725133844317,-500.0,0.00032876,31]
[336773669,1725133844326,-943.92,0.00032876,31]
[336773670,1725133844336,-6025.192192,0.00032876,7]
[336773671,1725133844345,-302.84474771,0.00032876,31]
[336773672,1725133844355,-527.69,0.00032876,31]
[336773673,1725133844364,-571.55,0.00032876,31]
[336773674,1725133844373,-3105.91,0.00032876,31]
[336773675,1725133844382,-500.0,0.00032876,31]
[336773676,1725133844392,-4296.26,0.00032876,31]
[336773677,1725133844401,-9551.43,0.00032876,31]
[336773678,1725133844410,-4977.72147096,0.00032876,7]
[336773679,1725133844436,-453.34579587,0.00032876,7]
[336773680,1725133844666,-594.12492517,0.00032876,7]
[336773681,1725133844676,-6025.192192,0.00032876,7]
[336773682,1725133844685,-6025.192192,0.00032876,7]
[336773683,1725133844695,-6025.192192,0.00032876,7]
[336773684,1725133844704,-1518.88,0.00032876,31]
[336773685,1725133844714,-6025.192192,0.00032876,7]
[336773686,1725133844723,-500.0,0.00032876,31]
[336773687,1725133844732,-500.0,0.00032876,31]
[336773688,1725133844741,-500.0,0.00032876,31]
[336773689,1725133844750,-995.95525546,0.00032903,2]
[336773690,1725133844759,-159.64,0.00033,31]
[336773691,1725133844769,-150.112233,0.00033,9]
[336773692,1725133844778,-150.112233,0.000331,7]
[336773693,1725133844788,-150.112233,0.000331,10]
[336773694,1725133844798,-150.112233,0.000331,5]
[336773695,1725133844807,-995.95525546,0.00033107,2]
[336773696,1725133844816,-12424.42988232,0.0003312,4]
[336773697,1725133844828,-1741.76988004,0.0003312,4]
[336773698,1725133844871,-1303.84714363,0.0003312,4]
[336773712,1725133845249,-1800.56760621,0.0003312,4]
[336773714,1725133845259,-2782.38,0.00033129,31]
[336773715,1725133845269,-2782.38,0.00033129,31]
[336773717,1725133845279,-151.0,0.0003313,14]
[336773719,1725133845288,-234.648985,0.0003313,14]
[336773720,1725133845298,-1716.924932,0.0003313,14]
[336773722,1725133845307,-1716.924932,0.0003313,14]
[336773724,1725133845316,-151.0,0.0003313,14]
[336773725,1725133845326,-151.0,0.00033139,14]
[336773726,1725133845335,-151.0,0.0003314,14]
[336773727,1725133845352,-151.0,0.0003314,14]
[336773728,1725133845362,-151.0,0.0003314,14]
[336773729,1725133845371,-502.974992,0.0003314,14]
[336773730,1725133845380,-502.974992,0.0003314,14]
[336773731,1725133845389,-72.85751269,0.0003314,14]
[336773749,1725134210952,157.8701892,0.00014247,2]
[336773752,1725134714548,163.593243,0.00014247,2]
[336773756,1725134842671,-163.593243,0.00023688,2]
[336773757,1725134842695,-250.0,0.00028406,2]
[336773758,1725134842720,-300.0,0.00029128,2]
[336773759,1725134842743,-24900.0,0.00029129,2]
[336773760,1725134842764,-231.9454097,0.00029566,2]
[336773761,1725134842785,-1076.11250587,0.0003,7]
[336773762,1725134842806,-151.0,0.0003,120]
[336773763,1725134842826,-168.531821,0.00030369,2]
[336773764,1725134842848,-183.632403,0.00030521,2]
[336773765,1725134842869,-245.387348,0.0003075,2]
[336773766,1725134842890,-260.675706,0.0003075,2]
[336773767,1725134842910,-172.188926,0.0003075,2]
[336773768,1725134842932,-183.632405,0.0003075,2]
[336773769,1725134842952,-214.82856,0.0003075,2]
[336773770,1725134842972,-202.654079,0.0003075,2]
[336773771,1725134842992,-176.25501,0.0003075,2]
[336773772,1725134843015,-245.387348,0.00031134,2]
[336773773,1725134843036,-260.675706,0.00031134,2]
[336773774,1725134843058,-1091.52886471,0.00031232,64]
[336773775,1725134843078,-183.632403,0.00031284,2]
[336773776,1725134843099,-497.97762773,0.00031393,2]
[336773777,1725134843120,-600.0,0.00031492,70]
[336773778,1725134843142,-245.387348,0.00031519,2]
[336773779,1725134843162,-260.675706,0.00031519,2]
[336773780,1725134843184,-172.188926,0.00031519,2]
[336773781,1725134843204,-183.632405,0.00031519,2]
[336773782,1725134843225,-176.25501,0.00031519,2]
[336773783,1725134843247,-500.0,0.00031548,7]
[336773784,1725134843268,-500.0,0.00031628,7]
[336773785,1725134843289,-151.0,0.00031753,120]
[336773786,1725134843311,-497.97762773,0.00031754,2]
[336773787,1725134843336,-243.464501,0.00031781,2]
[336773788,1725134843359,-500.0,0.00031818,7]
[336773789,1725134843384,-245.387348,0.00031903,2]
[336773790,1725134843534,-260.675706,0.00031903,2]
[336773791,1725134843556,-500.0,0.00031924,7]
[336773792,1725134843578,-1523.230323,0.0003198,2]
[336773793,1725134843599,-420.0,0.00032041,2]
[336773794,1725134843619,-183.632403,0.00032047,2]
[336773795,1725134843640,-4241.95275707,0.00032055,2]
[336773796,1725134843662,-151.03955338,0.00032078,2]
[336773797,1725134843682,-600.0,0.00032087,2]
[336773798,1725134843704,-497.97762773,0.00032115,2]
[336773799,1725134843725,-245.387348,0.00032287,2]
[336773800,1725134843746,-260.675706,0.00032287,2]
[336773801,1725134843767,-172.188926,0.00032287,2]
[336773802,1725134843788,-183.632405,0.00032287,2]
[336773803,1725134843808,-176.25501,0.00032287,2]
[336773804,1725134843828,-500.0,0.00032301,7]
[336773805,1725134843848,-207.8512623,0.00032356,2]
[336773806,1725134843867,-600.58928121,0.00032421,2]
[336773807,1725134843888,-497.97762773,0.00032476,2]
[336773808,1725134843908,-3257.88680883,0.00032522,2]
[336773809,1725134847200,-500.0,0.00031626,7]
[336773810,1725134847226,-500.0,0.0003181,7]
[336773811,1725134847251,-215.67374267,0.00031826,7]
[336773812,1725134850375,-284.32625733,0.00031826,7]
[336773813,1725134850398,-500.0,0.00031904,7]
[336773814,1725134850422,-500.0,0.0003221,7]
[336773815,1725134850446,-500.0,0.00032417,7]
[336773816,1725134850470,-898.81805743,0.00032522,2]
[336773836,1725135031670,-400.69003811,0.00030137,60]
[336773838,1725135031681,-172.188926,0.00030521,2]
[336773840,1725135031692,-409.96103904,0.00030752,2]
[336773841,1725135031703,-438.55886964,0.00030752,2]
[336773845,1725135031811,-298.12714609,0.00030752,2]
[336773846,1725135031823,-364.14923166,0.00030752,2]
[336773879,1725135037880,-1855.57374104,0.00030752,2]
[336773880,1725135037931,-784.97710193,0.00030752,2]
[336773881,1725135037941,-209.330723,0.00030961,2]
[336773882,1725135037952,-209.330723,0.00031046,2]
[336773883,1725135037961,-209.330723,0.00031131,2]
[336773884,1725135037971,-209.330723,0.00031216,2]
[336773885,1725135037980,-172.188926,0.00031284,2]
[336773886,1725135037989,-209.330723,0.00031301,2]
[336773887,1725135037998,-209.330723,0.00031386,2]
[336773888,1725135038008,-209.330723,0.00031471,2]
[336773889,1725135038017,-223.0,0.00031555,2]
[336773890,1725135038027,-209.330723,0.00031556,2]
[336773891,1725135038036,-209.330723,0.0003164,2]
[336773892,1725135038047,-209.330723,0.00031725,2]
[336773893,1725135038059,-209.330723,0.0003181,2]
[336773894,1725135038070,-209.330723,0.00031895,2]
[336773895,1725135038079,-209.330723,0.0003198,2]
[336773896,1725135038088,-172.188926,0.00032047,2]
[336773897,1725135038097,-209.330723,0.00032065,2]
[336773898,1725135038106,-209.330723,0.0003215,2]
[336773899,1725135038115,-209.330723,0.00032235,2]
[336773900,1725135038124,-209.330723,0.0003232,2]
[336773901,1725135038133,-209.330723,0.00032405,2]
[336773902,1725135038143,-209.330723,0.0003249,2]
[336773903,1725135038153,-500.0,0.00032542,7]
[336773904,1725135038162,-209.330723,0.00032574,2]
[336773905,1725135038173,-2899.14290467,0.00032676,2]
[336773906,1725135038182,-2899.14290467,0.00032701,2]
[336773907,1725135038191,-2899.14290467,0.00032726,2]
[336773908,1725135038202,-2899.14290467,0.0003275,2]
[336773909,1725135038211,-24315.1545175,0.00032766,4]
[336773910,1725135038221,-172.54,0.00032766,3]
[336773911,1725135038230,-517.66,0.00032766,3]
[336773912,1725135038240,-2989.26,0.00032766,3]
[336773913,1725135038249,-2491.05,0.00032766,3]
[336773914,1725135038259,-2899.14290467,0.00032775,2]
[336773915,1725135038268,-2469.92367663,0.00032776,11]
[336773916,1725135038280,-82116.76610782,0.00032776,5]
[336773917,1725135038289,-248.98881386,0.00032845,2]
[336773918,1725135038300,-500.0,0.00032865,2]
[336773919,1725135038311,-262.38549097,0.00032865,2]
[336773920,1725135038323,-500.0,0.00032865,2]
[336773921,1725135038334,-500.0,0.00032865,2]
[336773922,1725135038345,-352.34934783,0.00032865,2]
[336773923,1725135038355,-194521.23614,0.00032866,4]
[336773924,1725135038366,-500.0,0.00032875,31]
[336773925,1725135038376,-151.0,0.00032876,7]
[336773926,1725135038388,-151.325762,0.00032876,7]
[336773927,1725135038399,-500.0,0.00032876,31]
[336773928,1725135038411,-500.0,0.00032876,31]
[336773929,1725135038421,-500.0,0.00032876,31]
[336773930,1725135038436,-500.0,0.00032876,31]
[336773931,1725135038446,-500.0,0.00032876,2]
[336773932,1725135038455,-500.0,0.00032876,31]
[336773933,1725135038464,-500.0,0.00032876,31]
[336773934,1725135038475,-1374.98,0.00032876,31]
[336773935,1725135038485,-500.0,0.00032876,31]
[336773936,1725135038494,-500.0,0.00032876,31]
[336773937,1725135038503,-500.0,0.00032876,31]
[336773938,1725135038514,-500.0,0.00032876,31]
[336773939,1725135038524,-521.75,0.00032876,31]
[336773940,1725135038533,-500.0,0.00032876,31]
[336773941,1725135038543,-500.0,0.00032876,31]
[336773942,1725135038552,-593.75,0.00032876,31]
[336773943,1725135038561,-500.0,0.00032876,31]
[336773944,1725135038570,-500.0,0.00032876,31]
[336773945,1725135038579,-500.0,0.00032876,31]
[336773946,1725135038588,-500.0,0.00032876,31]
[336773947,1725135038598,-500.0,0.00032876,31]
[336773948,1725135038607,-500.0,0.00032876,31]
[336773949,1725135038616,-500.0,0.00032876,31]
[336773950,1725135038625,-500.0,0.00032876,31]
[336773951,1725135038635,-511.81801946,0.00032876,31]
[336773952,1725135038644,-519.09539338,0.00032876,31]
[336773953,1725135038654,-500.0,0.00032876,31]
[336773954,1725135038663,-500.0,0.00032876,31]
[336773955,1725135038674,-500.0,0.00032876,31]
[336773956,1725135038683,-500.0,0.00032876,31]
[336773957,1725135038693,-500.0,0.00032876,31]
[336773958,1725135038702,-368.56515404,0.00032876,31]
[336773959,1725135038711,-500.0,0.00032876,31]
[336773960,1725135038720,-500.0,0.00032876,31]
[336773961,1725135038729,-500.0,0.00032876,31]
[336773962,1725135038739,-500.0,0.00032876,31]
[336773963,1725135038750,-500.0,0.00032876,31]
[336773964,1725135038760,-500.0,0.00032876,31]
[336773965,1725135038770,-500.0,0.00032876,31]
[336773966,1725135038779,-500.0,0.00032876,31]
[336773967,1725135038789,-500.0,0.00032876,31]
[336773968,1725135038798,-500.0,0.00032876,31]
[336773969,1725135038808,-328.03077372,0.00032876,31]
[336773970,1725135038817,-500.0,0.00032876,31]
[336773971,1725135038826,-500.0,0.00032876,31]
[336773972,1725135038835,-500.0,0.00032876,31]
[336773973,1725135038844,-500.0,0.00032876,31]
[336773974,1725135038853,-500.0,0.00032876,31]
[336773975,1725135038862,-500.0,0.00032876,31]
[336773976,1725135038871,-500.0,0.00032876,31]
[336773977,1725135038881,-500.0,0.00032876,31]
[336773978,1725135038890,-500.0,0.00032876,31]
[336773979,1725135038899,-604.21,0.00032876,31]
[336773980,1725135038909,-500.0,0.00032876,31]
[336773981,1725135038918,-500.0,0.00032876,31]
[336773982,1725135038927,-500.0,0.00032876,31]
[336773983,1725135038935,-500.0,0.00032876,31]
[336773984,1725135038945,-500.0,0.00032876,31]
[336773985,1725135038954,-500.0,0.00032876,31]
[336773986,1725135038963,-302.84474771,0.00032876,31]
[336773987,1725135038972,-500.0,0.00032876,31]
[336773988,1725135038982,-500.0,0.00032876,31]
[336773989,1725135038993,-500.0,0.00032876,31]
[336773990,1725135039004,-500.0,0.00032876,31]
[336773991,1725135039013,-500.0,0.00032876,31]
[336773992,1725135039024,-529.41,0.00032876,31]
[336773993,1725135039035,-500.0,0.00032876,31]
[336773994,1725135039044,-500.0,0.00032876,31]
[336773995,1725135039054,-631.41,0.00032876,31]
[336773996,1725135039064,-500.0,0.00032876,31]
[336773997,1725135039073,-770.78,0.00032876,31]
[336773998,1725135039083,-589.49,0.00032876,31]
[336773999,1725135039093,-500.0,0.00032876,31]
[336774000,1725135039103,-500.0,0.00032876,31]
[336774001,1725135039112,-500.0,0.00032876,31]
[336774002,1725135039122,-500.0,0.00032876,31]
[336774003,1725135039131,-500.0,0.00032876,31]
[336774004,1725135039141,-500.0,0.00032876,31]
[336774005,1725135039151,-606.73,0.00032876,31]
[336774006,1725135039160,-500.0,0.00032876,31]
[336774007,1725135039172,-500.0,0.00032876,31]
[336774008,1725135039183,-737.32,0.00032876,30]
[336774009,1725135039195,-500.0,0.00032876,31]
[336774010,1725135039206,-500.0,0.00032876,31]
[336774011,1725135039216,-500.0,0.00032876,31]
[336774012,1725135039225,-500.0,0.00032876,31]
[336774013,1725135039235,-500.0,0.00032876,31]
[336774014,1725135039245,-500.0,0.00032876,31]